[Event "SVK ECo-C Extraliga 2021-22"]
[Site "Slovakia"]
[Date "2022.06.11"]
[Round "10"]
[White "Jozefek, Michal"]
[Black "Pacher, Milan"]
[Result "1-0"]
[ECO "A31"]
[WhiteElo "2201"]
[BlackElo "2394"]
[Annotator "TA"]
[PlyCount "79"]
[EventDate "2021.10.21"]
[EventType "team-tourn"]
[EventCountry "SVK"]
[SourceTitle "playchess.com"]
[Source "ChessBase"]
[SourceQuality "1"]
[TimeControl "40/5400+30:1800+30"]

{[%evp 9,79,-10,41,41,38,49,52,31,38,25,42,11,45,32,43,51,62,-14,-20,-22,-17,-16,-39,-13,0,0,-6,-9,-8,-95,-93,-84,-77,-442,-448,-413,-414,-718,-364,-591,-600,-535,-115,-184,-113,-257,379,395,1457,377,389,364,402,387,711,701,1484,1380,2002,2045,2375,2122,2254,2233,29982,29983,29985,29986,29987,29988,29990,29991]} 1. d4 {[%emt 0:00:13]} Nf6 {[%emt 0:00:02]} 2. c4 {[%emt 0:00:09]} c5 {[%emt 0:00:15]} 3. Nf3 {[%emt 0:01:00]} cxd4 {[%emt 0:00:04]} 4. Nxd4 {[%emt 0:00:06]} e5 {[%emt 0:00:09]} 5. Nc2 {[%emt 0:04:12]} b5 {[%emt 0:00:21]} (5... d5 $11) 6. cxb5 $14 {[%emt 0:08:35] A31: Symmetrical English: 2 Nf3 Nf6 3 d4.} d5 {[%emt 0:00:04]} 7. Bg5 {[%emt 0:06:17]} Bb7 {[%emt 0:01:40] [#]} 8. e4 $146 {[%emt 0:04:03] White is slightly better.} ({Predecessor:} 8. e3 Nbd7 9. Be2 Rc8 10. O-O h6 11. Bh4 g5 12. Bg3 h5 13. f4 gxf4 14. exf4 {0-1 (28) Dobrotka,M (2259)-Kozul,Z (2602) Skopje 2012}) 8... d4 {[%emt 0:01:45]} 9. Bd3 {[%emt 0:01:27]} Nbd7 {[%emt 0:00:20]} 10. b4 {[%emt 0:01:08] Against Nc5} Be7 {[%emt 0:03:20]} 11. Qe2 {[%emt 0:02:06]} O-O {[%emt 0:01:11]} 12. O-O {[%emt 0:00:26]} Rc8 {[%emt 0:00:18]} 13. Nd2 {[%emt 0:03:00]} ({White should play} 13. a4 $14) 13... Rc3 $11 {[%emt 0:01:10]} 14. f3 {[%emt 0:04:51]} Nh5 {[%emt 0:05:30]} 15. Bxe7 {[%emt 0:01:53]} Qxe7 {[%emt 0:00:03]} 16. g3 {[%emt 0:00:47] Against Nf4} Rfc8 {[%emt 0:00:41][%mdl 1024] Threatens to win with ...Qg5. Black has compensation.} (16... Qg5 {is more complex.} 17. Kf2 Rfc8 18. Ne1 Qe7) 17. Nb1 $1 {[%emt 0:16:35]} R3c7 {[%emt 0:00:05][%cal Of7f5]} 18. a4 {[%emt 0:10:45]} Qg5 {[%emt 0:01:09]} 19. Ra2 {[%emt 0:02:33]} (19. Qd2 $11 {keeps the balance.} Nf4 20. Kh1) 19... Nf4 $36 {[%emt 0:04:39][%mdl 2048] White is under strong pressure.} 20. Qd2 {[%emt 0:00:19]} h6 {[%emt 0:01:02]} 21. Kh1 $2 {[%emt 0:08:54][%mdl 8192]} (21. Nxd4 $17 {is more resistant.} Nxd3 22. Nc6) 21... Nxd3 $19 {[%emt 0:00:38]} 22. Qxd3 {[%emt 0:00:01]} f5 $1 {[%emt 0:00:25] aiming for ...fxe4.} 23. exf5 {[%emt 0:01:21]} (23. Ne1 $142 fxe4 24. fxe4) 23... e4 {[%emt 0:02:17]} 24. Qb3+ {[%emt 0:04:55]} (24. fxe4 Nf6 25. Qb3+ Kh8) (24. Qxd4 exf3 25. Ne1 Qxf5 26. Raf2 Qxb1 27. Nxf3) 24... Kh8 {[%emt 0:00:05] White must now prevent ...d3.} 25. Nxd4 {[%emt 0:02:52] [#]} exf3 $2 {[%emt 0:00:07]} (25... Rc1 $1 $19 {[%cal Rc1f1] and Black stays clearly on top.} 26. Kg1 Rxf1+ 27. Kxf1 Qc1+ 28. Kf2 Qh1) 26. Raf2 {[%emt 0:01:54]} (26. Nxf3 $2 Ne5 27. Nbd2 Rc3 $19) (26. Nc6 $17) 26... Ne5 {[%emt 0:03:17]} (26... Rc1 $19 {And now ...Rxf1+ would win.} 27. Nc6 (27. Nxf3 $2 Ne5 $19) 27... Nb8) 27. Ne6 {[%emt 0:06:44] [#]} ({Don't go for} 27. Nxf3 $2 Nxf3 28. Rxf3 Rc1 29. Rxc1 Bxf3+ 30. Qxf3 Rxc1+ 31. Kg2 Rxb1 $19) (27. Nc6 $17 {was the only defense.} Nxc6 28. bxc6 Rxc6 29. Kg1 (29. Qxf3 $2 Rb6 $19)) 27... Rc1 $4 {[%emt 0:03:48][%mdl 8192]} 28. Nxg5 $18 {[%emt 0:04:38]} Rxf1+ {[%emt 0:00:05]} 29. Rxf1 {[%emt 0:00:02]} f2+ {[%emt 0:00:05] [#]} 30. Nf3 $1 {[%emt 0:00:06]} Nxf3 {[%emt 0:00:58]} (30... Bxf3+ 31. Qxf3) 31. Qf7 {[%emt 0:02:36]} Ba8 {[%emt 0:01:03]} (31... Rb8 32. Rxf2 Ne5+ 33. Qxb7 Rxb7) 32. Qxa7 {[%emt 0:00:23]} Be4 {[%emt 0:09:07]} 33. Kg2 {[%emt 0:00:59][%cal Bh1g2,Bg2f1,Bf1e2,Be2e3,Be3d4][%mdl 32]} Rc2 {[%emt 0:00:47]} 34. Rxf2 {[%emt 0:00:56]} Ng5+ {[%emt 0:00:36]} 35. Kf1 {[%emt 0:00:14]} Rc1+ {[%emt 0:00:05]} 36. Ke2 {[%emt 0:00:04]} Rxb1 {[%emt 0:00:04]} 37. f6 {[%emt 0:00:23] White mates.} gxf6 {[%emt 0:00:21]} 38. Rxf6 {[%emt 0:00:11][%cal Rf6f8]} Bf3+ {[%emt 0:00:36]} 39. Ke3 {[%emt 0:00:15][%cal Rf6f8]} Rb3+ {[%emt 0:00:11]} 40. Kd4 {[%emt 0:00:26] Weighted Error Value: White=0.64/Black=0.82} 1-0

[Event "SVK ECo-C Extraliga 2021-22"]
[Site "Slovakia"]
[Date "2022.06.11"]
[Round "10"]
[White "Kravec, Patrik"]
[Black "Pacher, Milan"]
[Result "0-1"]
[ECO "D04"]
[WhiteElo "2152"]
[BlackElo "2394"]
[Annotator "TA"]
[PlyCount "65"]
[EventDate "2021.10.21"]
[EventType "team-tourn"]
[EventCountry "SVK"]
[SourceTitle "playchess.com"]
[Source "ChessBase"]
[SourceQuality "1"]
[TimeControl "40/5400+30:1800+30"]

{[%evp 13,65,-14,0,-28,0,-11,0,-29,-16,-24,-20,-25,-28,-31,-17,-27,-22,-77,-68,-50,-45,-111,-107,-107,-103,-106,-90,-112,-120,-169,-166,-270,-145,-561,-556,-550,-332,-1098,-1121,-1083,-1071,-5393,-2474,-2000,-1315,-29985,-29986,-29991,-1804,-29996,-1207,-29996,-29997,-29997]} 1. d4 {[%emt 1:31:00]} d5 {[%emt 1:31:00]} 2. Nf3 {[%emt 0:00:30]} Nf6 {[%emt 0:00:30]} 3. e3 {[%emt 0:00:30]} c5 {[%emt 0:00:30]} 4. c3 {[%emt 0:00:30]} Nbd7 {[%emt 0:00:30]} 5. Bd3 {[%emt 0:00:30]} g6 {[%emt 0:00:30]} 6. O-O {[%emt 0:00:30]} Bg7 {[%emt 0:00:30]} 7. Nbd2 {[%emt 0:00:30]} O-O {[%emt 0:00:30]} 8. b3 {[%emt 0:00:30] D04: Colle System.} b6 {[%emt 0:00:30][%cal Oe7e5]} 9. Bb2 {[%emt 0:00:30]} Bb7 {[%emt 0:00:30]} 10. c4 {[%emt 0:00:30] The position is equal.} cxd4 {[%emt 0:00:30]} 11. exd4 {[%emt 0:00:30] [#]} Ne4 $146 {[%emt 0:00:30]} ({Predecessor:} 11... e6 12. Re1 Rc8 13. Rc1 Re8 14. Qe2 Bh6 15. Rcd1 Nb8 16. Ne5 Nc6 17. Nxc6 Bxc6 {½-½ (45) Palachev,P (2201)-Skomorokhin,R (2436) Izhevsk 2010}) 12. Rb1 {[%emt 0:00:30]} Nxd2 {[%emt 0:00:30]} 13. Nxd2 {[%emt 0:00:30]} e5 {[%emt 0:00:30]} 14. cxd5 {[%emt 0:00:30]} exd4 {[%emt 0:00:30] aiming for ...Ne5.} 15. Nf3 {[%emt 0:00:30]} (15. Bc4 $1 $11 {remains equal.}) 15... Bxd5 $17 {[%emt 0:00:30]} 16. Nxd4 {[%emt 0:00:30]} Nc5 {[%emt 0:00:30][%cal Od5g2]} 17. Be2 {[%emt 0:00:30] [#]} (17. Bc2 $15) 17... Be4 $1 {[%emt 0:00:30]} ({Much worse is} 17... Qg5 $6 18. Nf3 Bxf3 19. Bxf3 $11) 18. Rc1 {[%emt 0:00:30]} Qd5 {[%emt 0:00:30] ...Rad8 is the strong threat.} 19. Bc4 {[%emt 0:00:30]} Qg5 {[%emt 0:00:30][%csl Ge4][%cal Rg5g2]} 20. g3 {[%emt 0:00:30]} Rad8 {[%emt 0:00:30][%cal Ob6b5] White must now prevent ...b5! Black is more active.} 21. Re1 {[%emt 0:00:30]} (21. b4 $17 {keeps fighting.}) 21... Ba8 $19 {[%emt 0:00:30][%cal Ob6b5] Strongly threatening ...b5!} 22. Rc2 {[%emt 0:00:30]} (22. h4 $142 Qf6 23. Rc2) 22... b5 {[%emt 0:00:30]} (22... Bxd4 $19 23. Bxd4 Qf5) 23. f4 $2 {[%emt 0:00:30][%mdl 8192] White does not recover from this.} (23. h4 $17 {nothing else works.} Qf6 24. Bf1) 23... Qf6 {[%emt 0:00:30]} 24. Bxb5 {[%emt 0:00:30]} Ne6 {[%emt 0:00:30][%cal Re6d4]} ({Weaker is} 24... Rxd4 25. Qxd4 Qxd4+ 26. Bxd4 Bxd4+ 27. Kf1 $15) 25. Re5 $2 {[%emt 0:00:30] [#]} (25. Nc6 Rxd1 26. Rxd1 Qxb2 27. Rxb2 Bxb2 28. Rd7) 25... Nxf4 $1 {[%emt 0:00:30][%mdl 512]} 26. gxf4 {[%emt 0:00:30]} Qxf4 {[%emt 0:00:30][%mdl 64] Pin} 27. Ree2 {[%emt 0:00:30]} Bxd4+ {[%emt 0:00:30]} 28. Bxd4 {[%emt 0:00:30]} Rxd4 {[%emt 0:00:30]} 29. Qc1 {[%emt 0:00:30]} Qg4+ {[%emt 0:00:30]} 30. Kf1 {[%emt 0:00:30]} Rf4+ {[%emt 0:00:30]} (30... Rfd8 $142 31. Bc6 Rd1+ 32. Qxd1 Rxd1+ 33. Re1 Bxc6 34. Rxd1 Qxd1+ 35. Kf2 Qxc2+ 36. Ke3 Qc3+ 37. Ke2 Bf3+ 38. Kf2 Bg4 39. Kg2 Qf3+ 40. Kg1 Bh3 41. b4 Qg2#) 31. Ke1 {[%emt 0:00:30]} Qh4+ {[%emt 0:00:30]} (31... Qg1+ $142 32. Kd2 Rd8+ 33. Bd3 {[#]} Rxd3+ $1 {[%mdl 512]} 34. Kxd3 Qd4#) 32. Kd2 {[%emt 0:00:30]} Rd8+ {[%emt 0:00:30]} 33. Bd3 {[%emt 0:00:30] Weighted Error Value: White=1.34/Black=0.72} 0-1

[Event "SVK ECo-C Extraliga 2021-22"]
[Site "Slovakia"]
[Date "2022.06.11"]
[Round "10"]
[White "Bury, Rastislav"]
[Black "Bochnicka Vladimir ml."]
[Result "0-1"]
[ECO "A89"]
[WhiteElo "2118"]
[BlackElo "2262"]
[Annotator "TA"]
[PlyCount "97"]
[EventDate "2021.10.21"]
[EventType "team-tourn"]
[EventCountry "SVK"]
[SourceTitle "playchess.com"]
[Source "ChessBase"]
[SourceQuality "1"]
[TimeControl "40/5400+30:1800+30"]

{[%evp 16,97,16,1,2,-25,-7,-13,-14,-13,-17,-13,-11,-54,-49,-112,-104,-91,-98,-89,-88,-143,-143,-120,-101,-110,-110,-103,-100,-133,-114,-138,-111,-253,-234,-235,-137,-146,-144,-185,-189,-207,-244,-244,-244,-244,-244,-244,-244,-244,-241,-233,-192,-274,-253,-206,-199,-442,-472,-615,-615,-591,-167,-275,-260,-713,-263,-800,5718,-574,1831,-753,1393,213,12837,-12847,1568,-12841,-12828,-1210,-675,-12835,0,-12837]} 1. d4 {[%emt 0:00:05]} f5 {[%emt 0:00:10]} 2. Nf3 {[%emt 0:00:44]} Nf6 {[%emt 0:00:10]} 3. g3 {[%emt 0:00:05]} g6 {[%emt 0:00:15]} 4. Bg2 {[%emt 0:00:05]} Bg7 {[%emt 0:00:08]} 5. O-O {[%emt 0:00:05]} O-O {[%emt 0:00:19]} 6. c4 {[%emt 0:01:34]} d6 {[%emt 0:00:13]} 7. Nc3 {[%emt 0:00:37]} Nc6 {[%emt 0:00:46] Recently 7...c6 got a lot of attention.} 8. b3 {[%emt 0:08:42]} e5 {[%emt 0:05:01]} 9. dxe5 {[%emt 0:00:30]} (9. d5 {with more complications.} Ne7 10. e4 Nxe4 11. Nxe4 fxe4 12. Ng5) 9... dxe5 {[%emt 0:00:14] A89: Dutch Defence: Leningrad System: 5 Nf3 0-0 6 0-0 d6 7 Nc3 Nc6.} 10. e4 {[%emt 0:06:04]} Qxd1 {[%emt 0:16:31]} 11. Rxd1 {[%emt 0:00:33] [#]} Nxe4 $146 {[%emt 0:00:29]} ({Predecessor:} 11... Be6 12. Ng5 Bf7 13. Ba3 Rfd8 14. Nb5 Rxd1+ 15. Rxd1 Rc8 16. Nxf7 Kxf7 17. exf5 gxf5 18. Bxc6 bxc6 19. Nxa7 {½-½ (28) Tarasova,V (2226)-Chambers,C Chess.com INT 2021}) 12. Nxe4 {[%emt 0:00:37]} fxe4 {[%emt 0:00:06]} 13. Ng5 {[%emt 0:01:55]} Bg4 {[%emt 0:02:25]} 14. Rd2 {[%emt 0:10:11]} Nd4 {[%emt 0:08:55]} 15. Nxe4 {[%emt 0:00:30] [#]} (15. Ba3 $15) 15... Ne2+ $1 $17 {[%emt 0:11:27]} 16. Rxe2 {[%emt 0:05:42]} Bxe2 {[%emt 0:00:12]} 17. Ba3 {[%emt 0:00:11]} Rfd8 {[%emt 0:11:10]} 18. Nc5 {[%emt 0:04:52]} (18. Re1 $142 Bg4 19. Be7) 18... e4 {[%emt 0:04:35]} 19. Re1 {[%emt 0:05:05]} Bf3 {[%emt 0:00:57]} 20. Nxe4 {[%emt 0:00:44]} Bxg2 {[%emt 0:02:25]} 21. Kxg2 {[%emt 0:07:45]} a5 {[%emt 0:02:22][%cal Ba7a5,Ba5a4][%mdl 32]} 22. Re2 {[%emt 0:05:08]} a4 $36 {[%emt 0:01:59][%mdl 2048] Black has strong initiative.} 23. Be7 {[%emt 0:02:01]} Rd4 {[%emt 0:05:47]} 24. Nc5 {[%emt 0:01:32]} (24. Bg5 $17) 24... axb3 {[%emt 0:00:46]} 25. axb3 {[%emt 0:00:09]} b6 {[%emt 0:05:08]} (25... Re8 $19 {And now ...Kf7 would win.} 26. Ne6 Rd7) 26. Ne6 {[%emt 0:04:48]} Rd7 {[%emt 0:00:21]} 27. Bg5 {[%emt 0:01:24]} Re8 {[%emt 0:03:28] ...Kf7 is the strong threat.} 28. Re3 {[%emt 0:01:16]} Kf7 {[%emt 0:02:08]} 29. Nxg7 {[%emt 0:01:52]} Rxe3 {[%emt 0:00:12]} 30. Bxe3 {[%emt 0:00:14]} Kxg7 $19 {[%emt 0:00:07][%mdl 4096] Endgame KR-KB} 31. b4 {[%emt 0:00:26] [#]} Kf6 $1 {[%emt 0:01:12]} 32. Kf3 {[%emt 0:02:07]} Ke5 {[%emt 0:00:36] Hoping for ...Rd3.} 33. Ke2 {[%emt 0:00:24] Inhibits Rd3.} Kf5 {[%emt 0:02:07]} 34. f3 {[%emt 0:00:30]} (34. h3 {was worth a try.}) 34... Rd8 {[%emt 0:00:18]} 35. Bf4 {[%emt 0:00:22]} c6 {[%emt 0:01:09]} 36. Bc7 $2 {[%emt 0:02:42]} (36. Be3) 36... Rd4 {[%emt 0:00:42]} 37. g4+ {[%emt 0:03:16]} Ke6 {[%emt 0:00:21]} 38. c5 {[%emt 0:01:08]} g5 $2 {[%emt 0:01:58]} (38... b5 39. Ba5 Kd5) 39. Ke3 {[%emt 0:00:00]} (39. Bxb6 $142 Rxb4 40. Bd8) 39... Kd5 {[%emt 0:00:27] Strongly threatening ...b5.} 40. h3 $2 {[%emt 0:00:06]} (40. Bxb6 Rxb4 41. Bd8) 40... h6 $2 {[%emt 0:00:15]} (40... b5 41. Ba5 Rc4) 41. Kf2 $2 {[%emt 0:30:32]} (41. Bxb6 Rxb4 42. Kf2) 41... Rd1 $4 {[%emt 0:30:59][%mdl 8192]} (41... bxc5 $19 42. bxc5 Kxc5) 42. Kg3 $4 {[%emt 0:00:24][%mdl 8192]} (42. cxb6 $18 {Black must now prevent b7.} Rb1 43. b7 Rxb4 44. b8=Q Rxb8 45. Bxb8) 42... Kd4 $4 {[%emt 0:00:29][%mdl 8192]} (42... bxc5 $19 43. bxc5 Kxc5) 43. h4 $4 {[%emt 0:00:28][%mdl 8192]} (43. cxb6 $18 Rg1+ 44. Kf2) 43... Ke3 $4 {[%emt 0:00:20][%mdl 8192]} (43... bxc5 $19 44. hxg5 hxg5) 44. hxg5 $2 {[%emt 0:00:09]} (44. cxb6 Rf1 45. b7) 44... hxg5 $2 {[%emt 0:00:06]} (44... Rg1+ $2 45. Kh2 hxg5 46. cxb6 $18) (44... bxc5 45. Bf4+ (45. gxh6 cxb4 46. Bf4+ Ke2 $16) 45... Ke2 46. gxh6 cxb4) 45. Bd8 $4 {[%emt 0:00:14][%mdl 8192]} Re1 $4 {[%emt 0:00:19][%mdl 8192]} (45... Rxd8 $19 46. cxb6 Rb8 47. Kg2 Rxb6 48. f4 gxf4 49. Kh2 f3 50. Kg3 f2 51. Kh4 f1=Q 52. Kh5 Rxb4 53. g5 Qf7+ 54. g6 Qf6 55. Kh6 Rh4#) 46. Bc7 $4 {[%emt 0:00:30][%mdl 8192]} (46. Bxg5+ $18 Kd3 47. cxb6) 46... Rg1+ {[%emt 0:00:30]} 47. Kh2 {[%emt 0:00:26]} Rb1 {[%emt 0:00:08]} 48. Kg3 {[%emt 0:00:09]} Ke2 $2 {[%emt 0:00:39]} ({Black should try} 48... bxc5 $19 49. Bb6 Rg1+ 50. Kh2 Rf1) 49. Bd8 $2 {[%emt 0:00:04][%mdl 8192] Quite a comeback for Black.  Weighted Error Value: White=1.40/Black=0.54} (49. cxb6 $11 Rxb4 50. Bd8) 0-1

[Event "SVK ECo-C Extraliga 2021-22"]
[Site "Slovakia"]
[Date "2022.06.11"]
[Round "10"]
[White "Nadzamova Viktoria"]
[Black "Jozefek, Michal"]
[Result "1-0"]
[ECO "E16"]
[WhiteElo "2113"]
[BlackElo "2201"]
[Annotator "TA"]
[PlyCount "81"]
[EventDate "2021.10.21"]
[EventType "team-tourn"]
[EventCountry "SVK"]
[SourceTitle "playchess.com"]
[Source "ChessBase"]
[SourceQuality "1"]
[TimeControl "40/5400+30:1800+30"]

{[%evp 11,81,14,29,18,81,19,17,11,21,16,14,0,11,0,0,-38,-36,-47,-25,-97,-97,-85,-45,-41,-39,-15,16,11,230,57,37,52,262,50,61,47,140,118,142,-5,-5,-64,0,0,0,0,59,58,157,164,158,31,930,1033,1025,1043,1022,1000,1010,989,29980,29981,29981,29982,29982,29983,29982,29983,29993,29994,29994,29995]} 1. d4 {[%emt 0:00:13]} Nf6 {[%emt 0:00:23]} 2. c4 {[%emt 0:00:40]} e6 {[%emt 0:00:22]} 3. Nf3 {[%emt 0:00:49]} b6 {[%emt 0:00:08]} 4. g3 {[%emt 0:01:16]} Ba6 {[%emt 0:00:13]} 5. Nbd2 {[%emt 0:04:53]} Be7 {[%emt 0:02:44]} 6. Bg2 {[%emt 0:01:40]} Bb7 {[%emt 0:00:07]} 7. O-O {[%emt 0:01:30][%cal Oe2e4] E16: Queen's Indian: 4 g3 Bb7 5 Bg2 Bb4+.} c5 {[%emt 0:00:18]} (7... O-O $11 {keeps the balance.}) 8. e3 {[%emt 0:07:13]} (8. e4) (8. e4 $16) 8... O-O {[%emt 0:02:59]} 9. b3 {[%emt 0:02:46] The position is equal.} Nc6 {[%emt 0:02:30]} 10. Bb2 {[%emt 0:01:43]} cxd4 {[%emt 0:01:01]} 11. exd4 {[%emt 0:01:57][%cal Od4d5]} d5 {[%emt 0:00:13]} 12. Ne5 {[%emt 0:04:09]} Rc8 {[%emt 0:03:38] [#]} 13. cxd5 $146 {[%emt 0:05:50]} ({Predecessor:} 13. Rc1 Rc7 14. Re1 dxc4 15. Ndxc4 Nxe5 16. dxe5 Nd5 17. Qg4 g6 18. Qe2 Ba6 19. Qe4 Bxc4 20. Rxc4 {0-1 (43) Farias,E (1898)-Calcado,A (2146) Florianopolis 2016}) 13... Nxd5 {[%emt 0:00:35]} 14. Nxc6 {[%emt 0:09:47]} Bxc6 {[%emt 0:01:46]} 15. Nf3 {[%emt 0:05:16]} (15. Rc1 $11) 15... Bb5 $17 {[%emt 0:02:57]} 16. Re1 {[%emt 0:01:29]} Nb4 {[%emt 0:09:21] And now ...Nc2 would win.} 17. a4 {[%emt 0:11:37]} Ba6 {[%emt 0:02:46] Threatens to win with ...Nc2.} 18. Ne5 {[%emt 0:01:02]} Qd6 {[%emt 0:22:03]} 19. Ba3 {[%emt 0:06:06]} Rfd8 $2 {[%emt 0:13:12]} (19... Qd8 $11 {and Black stays safe.}) 20. Qh5 $2 {[%emt 0:01:44]} ({White must play} 20. d5 $1 $18) 20... g6 $1 $14 {[%emt 0:02:18]} 21. Qf3 {[%emt 0:00:06]} f6 {[%emt 0:03:43]} (21... Rf8 $1 $14) 22. Ng4 $2 {[%emt 0:00:26]} (22. Bxb4 $18 Qxb4 23. Nc6) 22... f5 {[%emt 0:02:32]} (22... Qxd4 $2 23. Rad1 Qc3 24. Rxd8+ (24. Rxe6 Qxf3 25. Bxf3 Rxd1+ 26. Bxd1 Bc5 $11) 24... Bxd8 25. Qe4 Qxb3 26. Bxb4 $18) 23. Ne5 {[%emt 0:08:52]} Qxd4 {[%emt 0:04:59]} (23... Bf8 $14) 24. Rad1 $16 {[%emt 0:01:23]} Qc5 {[%emt 0:00:37]} 25. Rxd8+ {[%emt 0:06:55]} (25. Bxb4 $16 Rxd1 26. Qxd1 Qxb4 27. Nc6) 25... Rxd8 $11 {[%emt 0:00:47]} 26. h4 {[%emt 0:04:55]} (26. Bf1 $1 $11 Bc8 27. Bc4) 26... Bc8 {[%emt 0:03:56]} ({Better is} 26... Qc7 $15 27. Re3 Rd2) 27. h5 {[%emt 0:02:19]} Bf6 {[%emt 0:02:38]} 28. hxg6 {[%emt 0:01:32]} hxg6 {[%emt 0:10:05]} (28... Bxe5 $11 29. gxh7+ Kh8 30. Bxb4 Qxb4 31. Rxe5 Qd2) 29. Nxg6 $14 {[%emt 0:00:11] Qh5 is the strong threat.} a5 {[%emt 0:01:18]} (29... Qd4 $1 $14 30. Rc1 a5) 30. Rc1 $16 {[%emt 0:02:45]} Qd4 {[%emt 0:01:03] [#]} 31. Qh5 $40 {[%emt 0:01:13][%mdl 128] White has some attack.} (31. Nf4 $1 $16) 31... Nd3 $2 {[%emt 0:02:56][%mdl 8192]} (31... Qg4 $14 32. Qxg4 fxg4) 32. Rc7 $18 {[%emt 0:00:54][%csl Gc7][%cal Rh5h7]} Bd7 {[%emt 0:01:11] [#]} 33. Ne7+ $1 {[%emt 0:00:52]} Bxe7 {[%emt 0:00:49]} 34. Bxe7 {[%emt 0:00:02]} Qxf2+ {[%emt 0:00:41]} 35. Kh2 {[%emt 0:00:25] Intending Qg6+ and mate.} ({Weaker is} 35. Kh1 Qxg3 36. Qg5+ (36. Bxd8 Qe1+ 37. Kh2 Qe5+ 38. Kh1 Qe1+ 39. Kh2 Qe5+ 40. Kg1 Qe1+ 41. Bf1 Qg3+ 42. Bg2 Qe1+ 43. Bf1 Qg3+ 44. Bg2 Qe1+ $11) 36... Qxg5 37. Bxg5 Rc8 38. Rxd7 Rc3 $16) 35... Nf4 {[%emt 0:00:26] Against Qg6+} 36. Qg5+ {[%emt 0:00:33] White mates.} Kf7 {[%emt 0:00:33]} 37. Qf6+ {[%emt 0:01:39]} Kg8 {[%emt 0:00:04]} 38. gxf4 {[%emt 0:00:28]} Qxf4+ {[%emt 0:00:08]} 39. Kh1 {[%emt 0:00:12]} Be8 {[%emt 0:00:58]} 40. Qf8+ {[%emt 0:01:25]} Kh7 {[%emt 0:00:31]} 41. Bxd8+ {[%emt 0:30:09] Weighted Error Value: White=0.48/Black=0.61} 1-0